[Event "*** Titled Tuesday Blitz"]
[Site "Chess.com"]
[Date "2020.12.01"]
[Round "9"]
[White "Road2GM3000"]
[Black "Bwert2602"]
[Result "0-1"]
[WhiteElo "2121"]
[BlackElo "2228"]
[TimeControl "180+1"]
[EndTime "11:42:02 PST"]
[Termination "Bwert2602 won by resignation"]

1. d4 {[%clk 0:03:00.9]} 1... d6 {[%clk 0:03:00.3]} 2. c4 {[%clk 0:03:01.6]}
2... Nf6 {[%clk 0:03:00.7]} 3. Nc3 {[%clk 0:03:02.3]} 3... g6 {[%clk 0:03:01.3]}
4. e4 {[%clk 0:03:03.1]} 4... Bg7 {[%clk 0:03:01.8]} 5. f4 {[%clk 0:03:03.8]}
5... O-O {[%clk 0:03:01.7]} 6. Nf3 {[%clk 0:03:04.4]} 6... c5 {[%clk 0:03:02.1]}
7. d5 {[%clk 0:03:05.1]} 7... Na6 {[%clk 0:02:59.6]} 8. Bd3 {[%clk 0:03:04.9]}
8... Nc7 {[%clk 0:02:59.7]} 9. O-O {[%clk 0:03:05.5]} 9... a6 {[%clk 0:03:00]}
10. a4 {[%clk 0:03:05.6]} 10... Rb8 {[%clk 0:03:00.3]} 11. a5 {[%clk 0:03:03.8]}
11... b5 {[%clk 0:03:00.5]} 12. axb6 {[%clk 0:03:04.7]} 12... Rxb6 {[%clk
0:03:01]} 13. e5 {[%clk 0:03:03.8]} 13... Nfe8 {[%clk 0:02:57.5]} 14. exd6
{[%clk 0:03:02.8]} 14... Nxd6 {[%clk 0:02:49.3]} 15. Na4 {[%clk 0:03:02.3]}
15... Rb4 {[%clk 0:02:47.3]} 16. Nxc5 {[%clk 0:03:02.1]} 16... Nxc4 {[%clk
0:02:44.3]} 17. Qe1 {[%clk 0:02:54.2]} 17... Nxd5 {[%clk 0:02:38.9]} 18. Nxa6
{[%clk 0:02:43.2]} 18... Qb6+ {[%clk 0:02:33.9]} 19. Kh1 {[%clk 0:02:39.2]}
19... Bxa6 {[%clk 0:02:32.8]} 20. Be4 {[%clk 0:02:22.7]} 20... Nf6 {[%clk
0:02:12]} 21. Bd3 {[%clk 0:02:11.6]} 21... Bb7 {[%clk 0:02:05.7]} 22. Ne5 {[%clk
0:01:57.9]} 22... Nxe5 {[%clk 0:01:49.5]} 23. fxe5 {[%clk 0:01:58.8]} 23... Ng4
{[%clk 0:01:43.5]} 24. e6 {[%clk 0:01:40.3]} 24... fxe6 {[%clk 0:01:33.8]} 25.
Rxf8+ {[%clk 0:01:41.2]} 25... Kxf8 {[%clk 0:01:28.7]} 26. h3 {[%clk 0:01:36.5]}
26... Nf2+ {[%clk 0:01:22.4]} 27. Kh2 {[%clk 0:01:33.9]} 27... Nxd3 {[%clk
0:01:14.7]} 28. Qf1+ {[%clk 0:01:34.4]} 28... Qf2 {[%clk 0:01:01.5]} 29. Qxf2+
{[%clk 0:01:09.8]} 29... Nxf2 {[%clk 0:01:02.4]} 30. Bg5 {[%clk 0:00:59.5]}
30... Be5+ {[%clk 0:01:00.6]} 31. g3 {[%clk 0:00:57.7]} 31... Rxb2 {[%clk
0:01:00.4]} 32. Rf1 {[%clk 0:00:56.6]} 32... Kg7 {[%clk 0:00:59.1]} 0-1

[Event "*** Titled Tuesday Blitz"]
[Site "Chess.com"]
[Date "2020.12.01"]
[Round "9"]
[White "PowerThinking2650"]
[Black "FMalexhdez"]
[Result "1-0"]
[WhiteElo "2443"]
[BlackElo "2301"]
[TimeControl "180+1"]
[EndTime "11:42:05 PST"]
[Termination "PowerThinking2650 won by resignation"]

1. e4 {[%clk 0:03:00.9]} 1... c5 {[%clk 0:02:35.5]} 2. Nf3 {[%clk 0:03:00.7]}
2... d6 {[%clk 0:02:34.2]} 3. d4 {[%clk 0:03:00.7]} 3... cxd4 {[%clk 0:02:34.6]}
4. Nxd4 {[%clk 0:03:01.6]} 4... Nf6 {[%clk 0:02:35]} 5. Nc3 {[%clk 0:03:02.1]}
5... a6 {[%clk 0:02:35.6]} 6. Bc4 {[%clk 0:03:02.4]} 6... e5 {[%clk 0:02:36]} 7.
Nf5 {[%clk 0:03:01.9]} 7... Bxf5 {[%clk 0:02:31.5]} 8. exf5 {[%clk 0:03:01.5]}
8... Qc8 {[%clk 0:02:20.5]} 9. Qd3 {[%clk 0:02:07.4]} 9... Nbd7 {[%clk
0:02:17.5]} 10. Nd5 {[%clk 0:02:00.1]} 10... e4 {[%clk 0:01:32.5]} 11. Qd4
{[%clk 0:01:49.8]} 11... b5 {[%clk 0:01:13.5]} 12. Bb3 {[%clk 0:01:44.1]} 12...
a5 {[%clk 0:00:57.3]} 13. a4 {[%clk 0:01:38.3]} 13... Rb8 {[%clk 0:00:47.3]} 14.
axb5 {[%clk 0:01:34.3]} 14... Rxb5 {[%clk 0:00:29.8]} 15. Nxf6+ {[%clk
0:01:34.2]} 15... gxf6 {[%clk 0:00:26]} 16. O-O {[%clk 0:01:29]} 16... Qc5
{[%clk 0:00:20.6]} 17. Qxe4+ {[%clk 0:01:25.8]} 17... Qe5 {[%clk 0:00:19.4]} 18.
Qc6 {[%clk 0:01:14.8]} 18... Be7 {[%clk 0:00:16.6]} 19. Ba4 {[%clk 0:01:05.3]}
1-0

[Event "*** Titled Tuesday Blitz"]
[Site "Chess.com"]
[Date "2020.12.01"]
[Round "9"]
[White "gmpeter008"]
[Black "Iskusnyh"]
[Result "0-1"]
[WhiteElo "2452"]
[BlackElo "2624"]
[TimeControl "180+1"]
[EndTime "11:42:14 PST"]
[Termination "Iskusnyh won by resignation"]

1. e4 {[%clk 0:03:00.9]} 1... e6 {[%clk 0:02:58.2]} 2. d4 {[%clk 0:02:59.1]}
2... d5 {[%clk 0:02:58.5]} 3. Nc3 {[%clk 0:02:59.4]} 3... Nf6 {[%clk 0:02:58]}
4. e5 {[%clk 0:02:59.5]} 4... Nfd7 {[%clk 0:02:58.4]} 5. f4 {[%clk 0:02:59.9]}
5... c5 {[%clk 0:02:58.9]} 6. Nf3 {[%clk 0:03:00.4]} 6... Nc6 {[%clk 0:02:59.5]}
7. Be3 {[%clk 0:03:00.8]} 7... Rb8 {[%clk 0:02:59.8]} 8. Be2 {[%clk 0:02:59.9]}
8... Qa5 {[%clk 0:02:57.2]} 9. O-O {[%clk 0:02:59.6]} 9... b5 {[%clk 0:02:53.6]}
10. f5 {[%clk 0:02:59.3]} 10... b4 {[%clk 0:02:47.6]} 11. fxe6 {[%clk
0:02:57.7]} 11... fxe6 {[%clk 0:02:47.1]} 12. Ng5 {[%clk 0:02:49.7]} 12... bxc3
{[%clk 0:02:13.3]} 13. Nxe6 {[%clk 0:02:47.5]} 13... cxb2 {[%clk 0:01:57.1]} 14.
Bh5+ {[%clk 0:00:27.1]} 14... g6 {[%clk 0:01:54.8]} 15. Qf3 {[%clk 0:00:26.9]}
15... Ndxe5 {[%clk 0:01:40.5]} 16. dxe5 {[%clk 0:00:17.5]} 16... Bxe6 {[%clk
0:01:39.6]} 17. Qf6 {[%clk 0:00:16.2]} 17... Kd7 {[%clk 0:01:13.5]} 18. Rad1
{[%clk 0:00:12.8]} 18... Be7 {[%clk 0:01:08.2]} 19. Rxd5+ {[%clk 0:00:08.6]}
19... Bxd5 {[%clk 0:01:04.5]} 0-1

[Event "*** Titled Tuesday Blitz"]
[Site "Chess.com"]
[Date "2020.12.01"]
[Round "9"]
[White "Oleksandr_Bortnyk"]
[Black "davidkalashian"]
[Result "1-0"]
[WhiteElo "2890"]
[BlackElo "2585"]
[TimeControl "180+1"]
[EndTime "11:42:16 PST"]
[Termination "Oleksandr_Bortnyk won by resignation"]

1. e4 {[%clk 0:03:00.9]} 1... c5 {[%clk 0:02:00.4]} 2. Nf3 {[%clk 0:02:57.7]}
2... d6 {[%clk 0:02:00]} 3. c3 {[%clk 0:02:57.3]} 3... Nf6 {[%clk 0:01:59.7]} 4.
h3 {[%clk 0:02:58]} 4... g6 {[%clk 0:01:58.1]} 5. Bd3 {[%clk 0:02:57.5]} 5...
Bg7 {[%clk 0:01:58.5]} 6. Bc2 {[%clk 0:02:57.9]} 6... O-O {[%clk 0:01:59]} 7. d4
{[%clk 0:02:58.4]} 7... Nc6 {[%clk 0:01:54.4]} 8. O-O {[%clk 0:02:58.6]} 8... b6
{[%clk 0:01:45.6]} 9. e5 {[%clk 0:02:55.5]} 9... dxe5 {[%clk 0:01:39.7]} 10.
dxe5 {[%clk 0:02:56.4]} 10... Nd7 {[%clk 0:01:30.7]} 11. Bf4 {[%clk 0:02:49.4]}
11... Bb7 {[%clk 0:01:16.8]} 12. Re1 {[%clk 0:02:41.3]} 12... Qc8 {[%clk
0:01:16.5]} 13. Na3 {[%clk 0:02:34.5]} 13... Nd8 {[%clk 0:01:14.6]} 14. Bg3
{[%clk 0:02:20.9]} 14... a6 {[%clk 0:01:03]} 15. Nc4 {[%clk 0:02:18.6]} 15...
Ne6 {[%clk 0:00:59.4]} 16. Ne3 {[%clk 0:01:59.3]} 16... Rd8 {[%clk 0:00:55.7]}
17. Qe2 {[%clk 0:01:50.6]} 17... Bxf3 {[%clk 0:00:50]} 18. Qxf3 {[%clk
0:01:50.1]} 18... Nxe5 {[%clk 0:00:50.2]} 19. Bxe5 {[%clk 0:01:49.5]} 19... Bxe5
{[%clk 0:00:50.1]} 20. Nd5 {[%clk 0:01:49.1]} 20... Bd6 {[%clk 0:00:18.9]} 21.
Nxb6 {[%clk 0:01:46.3]} 21... Qb8 {[%clk 0:00:12.2]} 22. Nxa8 {[%clk 0:01:45.4]}
22... Qxa8 {[%clk 0:00:12.1]} 23. Qxa8 {[%clk 0:01:45.3]} 23... Rxa8 {[%clk
0:00:13]} 24. Bb3 {[%clk 0:01:41.1]} 24... Nf4 {[%clk 0:00:13]} 25. Rad1 {[%clk
0:01:40.8]} 25... Rb8 {[%clk 0:00:11.7]} 26. Re4 {[%clk 0:01:40]} 26... g5
{[%clk 0:00:10.3]} 27. h4 {[%clk 0:01:39.6]} 27... h6 {[%clk 0:00:10.1]} 28. g3
{[%clk 0:01:39.3]} 28... Ng6 {[%clk 0:00:09.1]} 29. hxg5 {[%clk 0:01:37.6]}
29... hxg5 {[%clk 0:00:09.7]} 30. Rg4 {[%clk 0:01:38]} 30... Ne5 {[%clk
0:00:08.5]} 31. Rxg5+ {[%clk 0:01:37.7]} 31... Kh7 {[%clk 0:00:09.4]} 32. Kg2
{[%clk 0:01:36.1]} 1-0

[Event "*** Titled Tuesday Blitz"]
[Site "Chess.com"]
[Date "2020.12.01"]
[Round "9"]
[White "AlexSuv"]
[Black "jacky72"]
[Result "0-1"]
[WhiteElo "2561"]
[BlackElo "2723"]
[TimeControl "180+1"]
[EndTime "11:42:23 PST"]
[Termination "jacky72 won by resignation"]

1. d4 {[%clk 0:03:00.9]} 1... Nf6 {[%clk 0:03:00]} 2. c4 {[%clk 0:03:00.7]} 2...
g6 {[%clk 0:02:59.7]} 3. Nc3 {[%clk 0:03:01.1]} 3... Bg7 {[%clk 0:03:00.6]} 4.
e4 {[%clk 0:03:00.9]} 4... O-O {[%clk 0:03:01.5]} 5. Nf3 {[%clk 0:03:01.7]} 5...
d6 {[%clk 0:03:02.4]} 6. Be2 {[%clk 0:03:02.2]} 6... Na6 {[%clk 0:03:02.7]} 7.
O-O {[%clk 0:03:01]} 7... e5 {[%clk 0:03:03]} 8. d5 {[%clk 0:02:49.6]} 8... Nc5
{[%clk 0:03:02.6]} 9. Qc2 {[%clk 0:02:50.1]} 9... a5 {[%clk 0:03:02.8]} 10. b3
{[%clk 0:02:20.7]} 10... Ne8 {[%clk 0:02:59.3]} 11. a3 {[%clk 0:02:13.8]} 11...
h6 {[%clk 0:02:59]} 12. Rb1 {[%clk 0:02:13]} 12... f5 {[%clk 0:02:59.2]} 13. Nd2
{[%clk 0:02:13.3]} 13... f4 {[%clk 0:02:58.9]} 14. b4 {[%clk 0:02:12.2]} 14...
Na6 {[%clk 0:02:59.5]} 15. c5 {[%clk 0:02:04.6]} 15... axb4 {[%clk 0:02:51.3]}
16. axb4 {[%clk 0:02:03.7]} 16... dxc5 {[%clk 0:02:51.8]} 17. Bxa6 {[%clk
0:01:58.6]} 17... cxb4 {[%clk 0:02:46.8]} 18. Bxb7 {[%clk 0:01:55.9]} 18... bxc3
{[%clk 0:02:39.6]} 19. Qxc3 {[%clk 0:01:32.5]} 19... Bxb7 {[%clk 0:02:39.4]} 20.
Rxb7 {[%clk 0:01:32.2]} 20... Nd6 {[%clk 0:02:40.3]} 21. Rb1 {[%clk 0:01:25.1]}
21... g5 {[%clk 0:02:38.8]} 22. f3 {[%clk 0:01:22.2]} 22... h5 {[%clk
0:02:36.7]} 23. Ba3 {[%clk 0:01:20.8]} 23... g4 {[%clk 0:02:36.6]} 24. Bxd6
{[%clk 0:01:20.5]} 24... cxd6 {[%clk 0:02:36.3]} 25. Rb7 {[%clk 0:01:17.2]}
25... Rf7 {[%clk 0:02:34.7]} 26. Rfb1 {[%clk 0:01:15.1]} 26... Rc8 {[%clk
0:02:33.9]} 27. Qxc8 {[%clk 0:01:06.8]} 27... Qxc8 {[%clk 0:02:32.7]} 28. Rb8
{[%clk 0:01:07.3]} 28... Qxb8 {[%clk 0:02:30.6]} 29. Rxb8+ {[%clk 0:01:07.3]}
29... Bf8 {[%clk 0:02:31.5]} 30. Nc4 {[%clk 0:01:04.2]} 30... Rc7 {[%clk
0:02:20.9]} 31. Nxd6 {[%clk 0:00:42]} 31... g3 {[%clk 0:02:20.3]} 32. hxg3
{[%clk 0:00:34.2]} 32... fxg3 {[%clk 0:02:21.2]} 33. Kf1 {[%clk 0:00:33.7]}
33... Rc1+ {[%clk 0:02:20.8]} 34. Ke2 {[%clk 0:00:33.4]} 34... Rc2+ {[%clk
0:02:21.4]} 35. Kd3 {[%clk 0:00:25.7]} 35... Rxg2 {[%clk 0:02:21]} 36. Nf5
{[%clk 0:00:26.4]} 36... Rg1 {[%clk 0:02:18.1]} 37. Ke3 {[%clk 0:00:12.1]} 37...
Re1+ {[%clk 0:02:15.3]} 38. Kd2 {[%clk 0:00:12.3]} 38... g2 {[%clk 0:02:16.2]}
39. Kxe1 {[%clk 0:00:11.3]} 39... g1=Q+ {[%clk 0:02:16.3]} 40. Ke2 {[%clk
0:00:12]} 40... Qg2+ {[%clk 0:02:04.9]} 41. Ke3 {[%clk 0:00:12.3]} 41... Qg5+
{[%clk 0:02:04.6]} 42. Ke2 {[%clk 0:00:12.6]} 42... Qg2+ {[%clk 0:01:48.8]} 43.
Ke3 {[%clk 0:00:12.7]} 43... Qa2 {[%clk 0:01:49.1]} 44. d6 {[%clk 0:00:12.5]}
44... Qa7+ {[%clk 0:01:49]} 45. Ke2 {[%clk 0:00:12.3]} 45... Qxb8 {[%clk
0:01:49.3]} 0-1

[Event "*** Titled Tuesday Blitz"]
[Site "Chess.com"]
[Date "2020.12.01"]
[Round "9"]
[White "theturtlemoves"]
[Black "Chessdreamer2020"]
[Result "1-0"]
[WhiteElo "2428"]
[BlackElo "2520"]
[TimeControl "180+1"]
[EndTime "11:42:29 PST"]
[Termination "theturtlemoves won by resignation"]

1. e4 {[%clk 0:03:00.9]} 1... d6 {[%clk 0:02:59.8]} 2. d4 {[%clk 0:03:00.5]}
2... Nf6 {[%clk 0:03:00.4]} 3. Nd2 {[%clk 0:02:59.9]} 3... g6 {[%clk 0:02:58.3]}
4. Ngf3 {[%clk 0:02:59.1]} 4... Bg7 {[%clk 0:02:58.8]} 5. c3 {[%clk 0:02:59.6]}
5... O-O {[%clk 0:02:59.2]} 6. Be2 {[%clk 0:03:00.1]} 6... c5 {[%clk 0:02:59.7]}
7. dxc5 {[%clk 0:02:59.9]} 7... dxc5 {[%clk 0:02:59.2]} 8. O-O {[%clk
0:03:00.8]} 8... Nc6 {[%clk 0:02:59.5]} 9. Re1 {[%clk 0:02:59.6]} 9... Qc7
{[%clk 0:02:57.6]} 10. Qc2 {[%clk 0:02:59.5]} 10... b6 {[%clk 0:02:54.9]} 11. a4
{[%clk 0:02:59.1]} 11... Bb7 {[%clk 0:02:47.5]} 12. Nc4 {[%clk 0:02:59.5]} 12...
Rad8 {[%clk 0:02:45.9]} 13. g3 {[%clk 0:02:49.6]} 13... Ng4 {[%clk 0:02:32.1]}
14. Bf4 {[%clk 0:02:43.9]} 14... e5 {[%clk 0:02:29.2]} 15. Bg5 {[%clk
0:02:43.8]} 15... f6 {[%clk 0:02:27.1]} 16. Be3 {[%clk 0:02:22.7]} 16... Ne7
{[%clk 0:02:11.8]} 17. Nfd2 {[%clk 0:02:19.2]} 17... Nc8 {[%clk 0:02:03.2]} 18.
Bxg4 {[%clk 0:02:17.9]} 18... Nd6 {[%clk 0:02:02]} 19. Be6+ {[%clk 0:02:15.9]}
19... Kh8 {[%clk 0:02:00.9]} 20. Nxd6 {[%clk 0:02:09.5]} 20... Qxd6 {[%clk
0:02:00.1]} 21. Bb3 {[%clk 0:01:56.2]} 21... f5 {[%clk 0:01:59.2]} 22. Bg5
{[%clk 0:01:48.4]} 22... Rd7 {[%clk 0:01:53.5]} 23. Nc4 {[%clk 0:01:46.6]} 23...
Qc6 {[%clk 0:01:51.9]} 24. Rad1 {[%clk 0:01:42.3]} 24... Rxd1 {[%clk 0:01:47.8]}
25. Qxd1 {[%clk 0:01:36.3]} 25... h6 {[%clk 0:01:40.8]} 26. Bc1 {[%clk
0:01:24.8]} 26... fxe4 {[%clk 0:01:26.6]} 27. Be3 {[%clk 0:01:24.5]} 27... Qf6
{[%clk 0:01:18.3]} 28. Qd6 {[%clk 0:01:14.1]} 28... Qf3 {[%clk 0:01:15.7]} 29.
Nxe5 {[%clk 0:01:09.8]} 29... Qf5 {[%clk 0:01:00]} 30. Nxg6+ {[%clk 0:01:04.4]}
30... Kh7 {[%clk 0:00:59.6]} 31. Nxf8+ {[%clk 0:01:03.1]} 31... Qxf8 {[%clk
0:00:57.8]} 32. Qxf8 {[%clk 0:00:59.4]} 32... Bxf8 {[%clk 0:00:58.7]} 33. Bf4
{[%clk 0:00:54.7]} 33... Kg6 {[%clk 0:00:59]} 34. Bb8 {[%clk 0:00:54.5]} 34...
a6 {[%clk 0:00:56.8]} 35. Bc2 {[%clk 0:00:52.3]} 35... Kf5 {[%clk 0:00:55.3]}
36. f3 {[%clk 0:00:50.5]} 1-0

[Event "*** Titled Tuesday Blitz"]
[Site "Chess.com"]
[Date "2020.12.01"]
[Round "9"]
[White "bratkoo"]
[Black "Andrii_Prydun"]
[Result "1-0"]
[WhiteElo "2529"]
[BlackElo "2343"]
[TimeControl "180+1"]
[EndTime "11:42:29 PST"]
[Termination "bratkoo won by resignation"]

1. Nf3 {[%clk 0:02:59.8]} 1... d5 {[%clk 0:00:09.1]} 2. d4 {[%clk 0:02:55.6]}
2... c6 {[%clk 0:00:10]} 3. c4 {[%clk 0:02:55.5]} 3... Nf6 {[%clk 0:00:10.9]} 4.
Nc3 {[%clk 0:02:56.3]} 4... e6 {[%clk 0:00:11.4]} 5. g3 {[%clk 0:02:56.9]} 5...
Nbd7 {[%clk 0:00:11.9]} 6. Bg2 {[%clk 0:02:57.3]} 6... Be7 {[%clk 0:00:12.6]} 7.
O-O {[%clk 0:02:58.2]} 7... O-O {[%clk 0:00:13.2]} 8. b3 {[%clk 0:02:58.4]} 8...
b6 {[%clk 0:00:13.7]} 9. Qc2 {[%clk 0:02:58.8]} 9... Bb7 {[%clk 0:00:14.3]} 10.
Rd1 {[%clk 0:02:59.2]} 10... Rc8 {[%clk 0:00:14.9]} 11. Bf4 {[%clk 0:02:59.4]}
11... c5 {[%clk 0:00:15.6]} 12. dxc5 {[%clk 0:02:59.1]} 12... Nxc5 {[%clk
0:00:15.3]} 13. cxd5 {[%clk 0:02:57.6]} 13... exd5 {[%clk 0:00:14.8]} 14. Qd2
{[%clk 0:02:49.9]} 14... Ne6 {[%clk 0:00:14.9]} 15. Nb5 {[%clk 0:02:44.7]} 15...
Ne4 {[%clk 0:00:13.9]} 16. Qe1 {[%clk 0:02:44.2]} 16... a6 {[%clk 0:00:13.7]}
17. Nbd4 {[%clk 0:02:43.1]} 17... Bf6 {[%clk 0:00:14]} 18. Rac1 {[%clk
0:02:37.7]} 18... Rxc1 {[%clk 0:00:12.7]} 19. Bxc1 {[%clk 0:02:37]} 19... Nxd4
{[%clk 0:00:11.8]} 20. Nxd4 {[%clk 0:02:36.4]} 20... Re8 {[%clk 0:00:12]} 21.
Bb2 {[%clk 0:02:34.8]} 21... Qc8 {[%clk 0:00:07.7]} 22. Rc1 {[%clk 0:02:33]}
22... Qd7 {[%clk 0:00:04.5]} 23. Qd1 {[%clk 0:02:33.1]} 23... Bg5 {[%clk
0:00:04.2]} 24. e3 {[%clk 0:02:31.7]} 24... Nxf2 {[%clk 0:00:03.9]} 25. Kxf2
{[%clk 0:02:30.2]} 25... Bxe3+ {[%clk 0:00:04.8]} 26. Kf1 {[%clk 0:02:30.2]}
26... a5 {[%clk 0:00:05.7]} 27. Qd3 {[%clk 0:02:18.6]} 27... Bxc1 {[%clk
0:00:06.2]} 28. Bxc1 {[%clk 0:02:18.3]} 28... Qc8 {[%clk 0:00:07.1]} 29. Qd2
{[%clk 0:02:14.1]} 29... Ba6+ {[%clk 0:00:07.4]} 30. Kf2 {[%clk 0:02:12.2]}
30... Qc5 {[%clk 0:00:08.3]} 31. Bf3 {[%clk 0:02:07.7]} 31... a4 {[%clk
0:00:05]} 32. bxa4 {[%clk 0:02:01.2]} 32... Bc4 {[%clk 0:00:05]} 33. a3 {[%clk
0:01:54.7]} 33... Ra8 {[%clk 0:00:05.3]} 34. Bb2 {[%clk 0:01:54.6]} 34... Rxa4
{[%clk 0:00:05.3]} 35. Qe3 {[%clk 0:01:54.1]} 35... h6 {[%clk 0:00:04.5]} 36.
Qe8+ {[%clk 0:01:53.9]} 36... Kh7 {[%clk 0:00:04.4]} 37. Qxa4 {[%clk 0:01:54.4]}
37... b5 {[%clk 0:00:03.5]} 38. Qc2+ {[%clk 0:01:54.4]} 38... Kg8 {[%clk
0:00:01.7]} 39. Kg2 {[%clk 0:01:54.3]} 39... Qb6 {[%clk 0:00:02]} 40. Qc3 {[%clk
0:01:53]} 40... Qg6 {[%clk 0:00:01.3]} 41. Nf5 {[%clk 0:01:51.7]} 41... f6
{[%clk 0:00:01.6]} 42. Ne7+ {[%clk 0:01:51.8]} 1-0

[Event "*** Titled Tuesday Blitz"]
[Site "Chess.com"]
[Date "2020.12.01"]
[Round "9"]
[White "Deepweb2020"]
[Black "HouseOfDurin"]
[Result "1-0"]
[WhiteElo "2262"]
[BlackElo "2080"]
[TimeControl "180+1"]
[EndTime "11:42:49 PST"]
[Termination "Deepweb2020 won on time"]

1. d4 {[%clk 0:03:00.4]} 1... Nf6 {[%clk 0:02:58.7]} 2. c4 {[%clk 0:02:59.6]}
2... c5 {[%clk 0:02:59.2]} 3. Nf3 {[%clk 0:02:59.1]} 3... cxd4 {[%clk
0:02:58.5]} 4. Nxd4 {[%clk 0:02:57.7]} 4... Nc6 {[%clk 0:02:59.4]} 5. g3 {[%clk
0:02:54.6]} 5... g6 {[%clk 0:02:59.4]} 6. Bg2 {[%clk 0:02:52.1]} 6... Bg7 {[%clk
0:02:59.6]} 7. O-O {[%clk 0:02:47.3]} 7... O-O {[%clk 0:02:59]} 8. Nc3 {[%clk
0:02:46.5]} 8... a6 {[%clk 0:02:48]} 9. b3 {[%clk 0:02:45.9]} 9... Nxd4 {[%clk
0:02:32.3]} 10. Qxd4 {[%clk 0:02:46.7]} 10... Ne4 {[%clk 0:02:32.3]} 11. Qxe4
{[%clk 0:02:43.5]} 11... Bxc3 {[%clk 0:02:32.2]} 12. Rb1 {[%clk 0:02:43.5]}
12... d6 {[%clk 0:02:10]} 13. Bh6 {[%clk 0:02:43.3]} 13... Re8 {[%clk 0:01:49]}
14. Rfd1 {[%clk 0:02:42.1]} 14... Bf5 {[%clk 0:01:43.8]} 15. Qxb7 {[%clk
0:02:40]} 15... Rb8 {[%clk 0:01:44.1]} 16. Qxa6 {[%clk 0:02:36.9]} 16... Bxb1
{[%clk 0:01:43.8]} 17. Rxb1 {[%clk 0:02:36.8]} 17... Bd4 {[%clk 0:01:28.6]} 18.
b4 {[%clk 0:02:25.9]} 18... Rb6 {[%clk 0:01:02.1]} 19. Qa3 {[%clk 0:02:21]}
19... Qd7 {[%clk 0:00:51.2]} 20. b5 {[%clk 0:02:17.5]} 20... Bxf2+ {[%clk
0:00:46.1]} 21. Kh1 {[%clk 0:02:10.2]} 21... Bc5 {[%clk 0:00:45.1]} 22. Qb2
{[%clk 0:01:57.5]} 22... e5 {[%clk 0:00:42.5]} 23. a4 {[%clk 0:01:52.3]} 23...
Bd4 {[%clk 0:00:36.7]} 24. Qc2 {[%clk 0:01:47.3]} 24... Rc8 {[%clk 0:00:34.2]}
25. Qd3 {[%clk 0:01:38.4]} 25... Rbb8 {[%clk 0:00:13.7]} 26. Bd5 {[%clk
0:01:34.9]} 26... Qh3 {[%clk 0:00:10.1]} 27. Be3 {[%clk 0:01:26]} 27... Bxe3
{[%clk 0:00:08]} 28. Qxe3 {[%clk 0:01:26.9]} 28... Kg7 {[%clk 0:00:06.6]} 29. a5
{[%clk 0:01:25.2]} 29... Rc5 {[%clk 0:00:06.5]} 30. Qf3 {[%clk 0:01:20.4]} 30...
Qf5 {[%clk 0:00:04.6]} 31. Qxf5 {[%clk 0:01:14.6]} 31... gxf5 {[%clk 0:00:05.5]}
32. a6 {[%clk 0:01:14.5]} 1-0

[Event "*** Titled Tuesday Blitz"]
[Site "Chess.com"]
[Date "2020.12.01"]
[Round "9"]
[White "XDPS"]
[Black "awesomevishesh"]
[Result "1-0"]
[WhiteElo "2766"]
[BlackElo "2550"]
[TimeControl "180+1"]
[EndTime "11:42:57 PST"]
[Termination "XDPS won on time"]

1. e4 {[%clk 0:03:00.9]} 1... c6 {[%clk 0:02:59]} 2. Nf3 {[%clk 0:03:00.6]} 2...
d5 {[%clk 0:02:59.4]} 3. Nc3 {[%clk 0:03:00.6]} 3... dxe4 {[%clk 0:02:56.1]} 4.
Nxe4 {[%clk 0:03:00.9]} 4... Nf6 {[%clk 0:02:55.8]} 5. Qe2 {[%clk 0:03:00.3]}
5... Nxe4 {[%clk 0:02:52]} 6. Qxe4 {[%clk 0:03:01.2]} 6... Nd7 {[%clk
0:02:52.1]} 7. Bc4 {[%clk 0:03:01.4]} 7... Nf6 {[%clk 0:02:51.9]} 8. Ne5 {[%clk
0:03:01.7]} 8... e6 {[%clk 0:02:52]} 9. Qe2 {[%clk 0:03:01.1]} 9... b5 {[%clk
0:02:46.1]} 10. Bb3 {[%clk 0:03:00.8]} 10... Qc7 {[%clk 0:02:26.9]} 11. O-O
{[%clk 0:03:00.5]} 11... Bd6 {[%clk 0:02:26]} 12. d4 {[%clk 0:03:00.6]} 12...
O-O {[%clk 0:02:23.2]} 13. Bf4 {[%clk 0:02:53]} 13... a5 {[%clk 0:02:20.6]} 14.
a3 {[%clk 0:02:39.5]} 14... c5 {[%clk 0:01:54.9]} 15. dxc5 {[%clk 0:02:34.5]}
15... Qxc5 {[%clk 0:01:54.4]} 16. Rfd1 {[%clk 0:02:31.1]} 16... Bc7 {[%clk
0:01:46]} 17. Nd3 {[%clk 0:02:22.5]} 17... Qc6 {[%clk 0:01:42.7]} 18. Bxc7
{[%clk 0:02:22.2]} 18... Qxc7 {[%clk 0:01:42.7]} 19. Qe5 {[%clk 0:02:22.8]}
19... Qc6 {[%clk 0:01:31.5]} 20. a4 {[%clk 0:02:21.5]} 20... Bb7 {[%clk
0:01:28.2]} 21. f3 {[%clk 0:02:21.6]} 21... b4 {[%clk 0:01:15.4]} 22. Nc5 {[%clk
0:02:15.6]} 22... Qb6 {[%clk 0:00:55.3]} 23. Rd6 {[%clk 0:02:11.3]} 23... Bc6
{[%clk 0:00:54.8]} 24. Kh1 {[%clk 0:01:56.6]} 24... Rfd8 {[%clk 0:00:28.9]} 25.
Rad1 {[%clk 0:01:43.4]} 25... h6 {[%clk 0:00:28.3]} 26. h3 {[%clk 0:01:23.1]}
26... Ne8 {[%clk 0:00:09.7]} 27. Rxd8 {[%clk 0:01:14.6]} 27... Rxd8 {[%clk
0:00:08.5]} 28. Rxd8 {[%clk 0:01:14.6]} 28... Qxd8 {[%clk 0:00:07.5]} 29. Nxe6
{[%clk 0:01:06.3]} 29... Qd1+ {[%clk 0:00:03.3]} 30. Kh2 {[%clk 0:01:06]} 30...
Bxf3 {[%clk 0:00:03.1]} 31. Nd4 {[%clk 0:00:56.9]} 1-0